Cogmind - Beta 10.2 @@@ ROGUE MODE // 2020.12.10 @ 20:41:00 Player: Serom_69 Result: Destroyed by S-10 Pest with Light Assault Rifle Performance ------------- Evolutions (1) 500 Regions Visited (3) 600 Robots Destroyed (16) 80 Value Destroyed (191) 191 Prototype IDs (0) 0 Alien Tech Used (0) 0 Bonus (0) 0 TOTAL SCORE: 1371 Bonus ------- None Cogmind --------- Core Integrity 0/400 Matter 300/300 Energy 98/100 System Corruption 0% Temperature Cool (0) Movement Core (50) Location -9/Mines Parts ------- > --- POWER (1) -------- (None) > --- PROPULSION (2) --- (None) > --- UTILITY (4) ------ (None) > --- WEAPON (2) ------- (None) > --- INVENTORY (4) ---- Aluminum Leg High-capacity Matter Pod (127) Structural Scanner ECM Suite Peak State ------------ > --- POWER ------------ Light Ion Engine > --- PROPULSION ------- Aluminum Leg Aluminum Leg > --- UTILITY ---------- Large Storage Unit Medium Matter Pod > --- WEAPON ----------- EM Pulse Gun Assault Rifle > --- INVENTORY -------- Light Ion Engine EM Pulse Gun [Rating: 7] Favorites ----------- Power Light Ion Engine Engine Light Ion Engine Propulsion Aluminum Leg Leg Aluminum Leg Hover Unit Improved Hover Unit Flight Unit Flight Unit Utility Small Storage Unit Device Structural Scanner Storage Small Storage Unit Weapon EM Pulse Gun Energy Gun EM Pulse Gun Ballistic Gun Assault Rifle Build | -11 -10 -9 -9 ------- Run | Scr Mat Mat Min Slots Evolved 2 | . . 2 . Power . | . . . . Propulsion . | . . . . Utility 2 | . . 2 . Weapon . | . . . . Parts Attached 21 | 6 14 1 . Power 1 | 1 . . . Engine 1 | 1 . . . Core . | . . . . Reactor . | . . . . Propulsion 6 | 2 3 1 . Treads . | . . . . Leg 3 | 2 1 . . Wheel . | . . . . Hover 1 | . . 1 . Flight 2 | . 2 . . Utility 10 | 1 9 . . Device 2 | . 2 . . Storage 8 | 1 7 . . Processor . | . . . . Hackware . | . . . . Protection . | . . . . Artifact . | . . . . Weapon 4 | 2 2 . . Energy Gun 3 | 1 2 . . Energy Cannon . | . . . . Ballistic Gun 1 | 1 . . . Ballistic Cannon . | . . . . Launcher . | . . . . Special Weapon . | . . . . Impact Weapon . | . . . . Slashing Weapon . | . . . . Piercing Weapon . | . . . . Special Melee Weapon . | . . . . Unidentified Prototypes . | . . . . Parts Lost 4 | . 2 2 . Power 1 | . 1 . . Propulsion 2 | . . 2 . Utility . | . . . . Weapon 1 | . 1 . . Highest Loss Streak 3 | . 1 3 . Average Slot Usage (%) 62 | . 80 8 . Engine 10 | . 14 . . Leg 16 | . 21 . . Flight 5 | . 5 6 . Device 3 | . 5 . . Storage 8 | . 11 . . Energy Gun 10 | . 14 . . Ballistic Gun 5 | . 7 . . Naked Turns 124 | . . 46 78 Heaviest Build 25 | 11 25 . . Greatest Support 20 | 20 20 8 3 Greatest Overweight (x) 1 | 1 1 . . Average Overweight (x) . | . . . . Largest Inventory Capacity 10 | 6 10 4 4 Average Capacity 6 | 5 6 4 4 Most Carried 4 | 4 4 4 4 Average Carried 2 | 1 2 4 4 Final Capacity 6 | 6 4 4 4 Final Carried 4 | . 4 4 4 Class Distribution -------------------- 94% | Mutant 5% | Infiltrator-Mutant Dominant Class ---------------- Mutant | -10/Materials Mutant | -9/Materials Mutant | -9/Mines Resources | -11 -10 -9 -9 ----------- Run | Scr Mat Mat Min Matter Collected 577 | 269 308 . . Remotely . | . . . . Salvage Created 585 | 96 489 . . Parts 41 | 2 39 . . Haulers Intercepted 1 | . 1 . . Recyclers Shooed . | . . . . Parts Field Recycled . | . . . . Retrieved Matter . | . . . . Parts Self-Destructed . | . . . . Prevented . | . . . . Kills | -11 -10 -9 -9 ------- Run | Scr Mat Mat Min Combat Hostiles Destroyed 6 | . 6 . . Guns 6 | . 6 . . Classes Destroyed 8 | 1 7 . . Worker 4 | . 4 . . Builder 1 | . 1 . . Tunneler 1 | . 1 . . Hauler 1 | . 1 . . Recycler 2 | 1 1 . . Watcher 1 | . 1 . . Swarmer 3 | . 3 . . Grunt 3 | . 3 . . Best Kill Streak 8 | 1 8 . . Combat Bots Only 4 | . 4 . . Max Kills in Single Turn 1 | 1 1 . . Gunslinging . | . . . . Exploded . | . . . . Melee . | . . . . Uniques/NPCs Destroyed . | . . . . Combat | -11 -10 -9 -9 -------- Run | Scr Mat Mat Min Damage Taken 841 | . 400 405 36 Core 524 | . 122 366 36 Absorbed by Shields . | . . . . Core Remaining (%) 75 | 100 51 . . Volleys Fired 40 | 3 37 . . Largest 2 | 2 2 . . Hottest 80 | 60 80 . . Shots Fired 74 | 6 68 . . Gun 74 | 6 68 . . Cannon . | . . . . Launcher . | . . . . Special . | . . . . Kinetic 24 | 3 21 . . Thermal . | . . . . Explosive . | . . . . Electromagnetic 50 | 3 47 . . Robot Hit Streak 11 | 4 11 . . Robot Miss Streak 3 | 1 3 . . Penetration Max . | . . . . Secondary Targets . | . . . . Shots Hit Robots 44 | 5 39 . . Core Hits 23 | 2 20 1 . Critical Hits . | . . . . Critical Kills . | . . . . Critical Parts Destroyed . | . . . . Melee Attacks . | . . . . Impact . | . . . . Slashing . | . . . . Piercing . | . . . . Sneak Attacks . | . . . . Combat Hostiles . | . . . . Follow-up Attacks . | . . . . Damage Inflicted 524 | 60 446 18 . Guns 500 | 60 440 . . Cannons . | . . . . Explosions . | . . . . Melee . | . . . . Ramming 24 | . 6 18 . Kinetic 138 | 23 115 . . Thermal . | . . . . Explosive . | . . . . Electromagnetic 362 | 37 325 . . Impact . | . . . . Slashing . | . . . . Piercing . | . . . . Highest Corruption . | . . . . Average Corruption . | . . . . Corruption Purged . | . . . . Overload Shots . | . . . . Overflow Damage . | . . . . Projectiles . | . . . . Explosions . | . . . . Melee . | . . . . Knockbacks . | . . . . Impact . | . . . . Kinetic . | . . . . Secondary . | . . . . Self-Inflicted Damage 8 | . . 8 . Shots . | . . . . Rammed 4 | . . 4 . Targets Rammed 5 | . 1 4 . Kicked 1 | . 1 . . Crushed . | . . . . Highest Temperature 255 | . 255 . . Average Temperature 96 | . 96 . . Received Heat Transfer 237 | . 159 78 . Siege Activations . | . . . . Robots Corrupted . | . . . . Combat Hostiles . | . . . . Parts Fried . | . . . . Impact Corruptions . | . . . . Robots Melted . | . . . . Combat Hostiles . | . . . . Parts Melted . | . . . . Heat Transferred . | . . . . Parts Sabotaged . | . . . . Parts Stolen . | . . . . Parts Stripped . | . . . . Power Chain Reactions . | . . . . Missiles Intercepted . | . . . . Alert | -11 -10 -9 -9 ------- Run | Scr Mat Mat Min Peak Influence 212 | 5 212 83 31 Initial 31 | . 3 13 31 Average 59 | 1 72 41 31 Maximum Alert Level 1 | . 1 . . Low Security (%) 98 | 100 98 100 100 Level 1 1 | . 1 . . Level 2 . | . . . . Level 3 . | . . . . Level 4 . | . . . . Level 5 . | . . . . High Security . | . . . . Max Security . | . . . . Squads Dispatched 3 | . 1 2 . Investigation 1 | . 1 . . Extermination . | . . . . Reinforcement 2 | . . 2 . Assault . | . . . . Garrison . | . . . . Intercept . | . . . . Construction Impeded . | . . . . Haulers Reinforced . | . . . . Stealth | -11 -10 -9 -9 --------- Run | Scr Mat Mat Min Distress Signals 1 | . . 1 . Communications Jammed . | . . . . Distress Signals . | . . . . Times Spotted 36 | . 13 19 4 Peak Tracking Total 17 | . 5 17 4 Tactical Retreats 2 | . 1 1 . Traps | -11 -10 -9 -9 ------- Run | Scr Mat Mat Min Traps Triggered 1 | . 1 . . Indirectly . | . . . . Trap Hack Attempts . | . . . . Triggered . | . . . . Disarmed . | . . . . Reprogrammed . | . . . . Reused . | . . . . Traps Extracted . | . . . . Installed . | . . . . Triggered . | . . . . Machines | -11 -10 -9 -9 ---------- Run | Scr Mat Mat Min Machines Disabled . | . . . . Max in Single Turn . | . . . . Machines Sabotaged . | . . . . Garrisons Compromised . | . . . . Overloaded Fab Kills . | . . . . Fab Network Shutdowns . | . . . . Hacking | -11 -10 -9 -9 --------- Run | Scr Mat Mat Min Machines Accessed 3 | . 3 . . Terminals 2 | . 2 . . Fabricators . | . . . . Repair Stations . | . . . . Recycling Units 1 | . 1 . . Scanalyzers . | . . . . Garrison Access . | . . . . Total Hacks 5 | . 5 . . Successful 1 | . 1 . . Failed 4 | . 4 . . Catastrophic 2 | . 2 . . Database Lockouts . | . . . . Manual . | . . . . Terminals 3 | . 3 . . Fabricators . | . . . . Repair Stations . | . . . . Recycling Units 2 | . 2 . . Scanalyzers . | . . . . Garrison Access . | . . . . Terminal Hacks 1 | . 1 . . Alert Level 1 | . 1 . . Fabricator Hacks . | . . . . Repair Station Hacks . | . . . . Recycling Unit Hacks . | . . . . Scanalyzer . | . . . . Garrison Access Hacks . | . . . . Unauthorized Hacks . | . . . . Terminals . | . . . . Fabricators . | . . . . Repair Stations . | . . . . Recycling Units . | . . . . Scanalyzers . | . . . . Garrison Access . | . . . . Data Cores Recovered . | . . . . Used . | . . . . Hacking Detections 2 | . 2 . . Full Trace Events 1 | . 1 . . Feedback Events . | . . . . Feedback Blocked . | . . . . Robot Schematics Acquired . | . . . . Robots Built . | . . . . Matter . | . . . . Time . | . . . . Total Robot Build Rating . | . . . . Part Schematics Acquired . | . . . . Parts Built . | . . . . Matter . | . . . . Time . | . . . . Total Part Build Rating . | . . . . Parts Repaired . | . . . . Time . | . . . . Parts Recycled . | . . . . Recycled Matter . | . . . . Retrieved Matter . | . . . . Retrieved Components . | . . . . Parts Scanalyzed . | . . . . Part Schematics Acquired . | . . . . Parts Damaged . | . . . . Bothacking | -11 -10 -9 -9 ------------ Run | Scr Mat Mat Min Used RIF Installer . | . . . . Robots Hacked . | . . . . Non-combat . | . . . . Combat . | . . . . Robot Hacks Applied . | . . . . Relay Couplers Released . | . . . . Robots Rewired . | . . . . Allies Hacked . | . . . . Hacks Repelled . | . . . . Allies | -11 -10 -9 -9 -------- Run | Scr Mat Mat Min Total Allies . | . . . . Largest Group . | . . . . Highest-Rated Group . | . . . . Highest-Rated Ally . | . . . . Total Orders . | . . . . Ally Attacks . | . . . . Total Damage . | . . . . Kills . | . . . . Allies Corrupted . | . . . . Allies Melted . | . . . . Intel | -11 -10 -9 -9 ------- Run | Scr Mat Mat Min Robot Analysis Total . | . . . . Derelict Logs Recovered 1 | . . . 1 Drone Launches . | . . . . Drone Recoveries . | . . . . Exploration | -11 -10 -9 -9 ------------- Run | Scr Mat Mat Min Turns Passed 731 | 57 515 81 78 Spaces Moved 804 | 44 432 172 156 Core 276 | 25 10 85 156 Treads . | . . . . Legs 232 | 19 213 . . Wheels . | . . . . Hover 1 | . . 1 . Flight 295 | . 209 86 . Fastest Speed 37 | 50 37 37 50 Average Speed 67 | 84 82 43 50 Slowest Speed 150 | 120 150 60 50 Overloaded Moves . | . . . . Propulsion Burnouts . | . . . . Robots Hopped 4 | . 2 2 . Cave-ins Triggered . | . . . . Exploration Rate (%) 35 | 3 76 27 35 Regions Visited 3 Branch Regions 1 Pre-discovered Areas . | . . . . Known Exits Taken . | . . . . Unknown Exits Taken 3 | 1 1 1 . Scrap Searched . | . . . . Spaces Dug . | . . . . Terrain Destroyed . | . . . . Melee . | . . . . Projectile . | . . . . AOE . | . . . . Terrain Rammed . | . . . . Walls Destroyed . | . . . . Machines Disabled . | . . . . Actions | -11 -10 -9 -9 --------- Run | Scr Mat Mat Min Total 909 | 56 522 175 156 Wait 19 | . 19 . . Move 795 | 43 428 168 156 Hop 2 | . 1 1 . Pick Up 14 | 4 10 . . Fast Attach 5 | 2 2 1 . Attach 11 | 4 7 . . Detach 4 | . 4 . . Swap 5 | . 5 . . Drop 9 | . 8 1 . Fire 40 | 3 37 . . Melee . | . . . . Ram 4 | . . 4 . Kick 1 | . 1 . . Crush . | . . . . Escape Stasis . | . . . . Rewire . | . . . . Trap . | . . . . Miscellaneous . | . . . . Route ------- -11/Scrapyard -10/Materials (discovered 3 exits: [*Mat x2] / [*Min]) -9/Materials -9/Mines (discovered 1 exit: [*Mat]) History --------- Turn | Location | Event 20 | -11/Scrapyard | Discovered new exit (range 15) 58 | -11/Scrapyard | Entered Materials 310 | -10/Materials | Build established: Mutant 392 | -10/Materials | Discovered new exit (range 6) 478 | -10/Materials | Discovered new exit (range 11) 571 | -10/Materials | Discovered new exit (range 6) 573 | -10/Materials | Entered another Materials area 573 | -9/Materials | Evolved 2 slots: Utility x2 630 | -9/Materials | Core integrity fell below 50% 637 | -9/Materials | Lost 3 parts (1p2n) 646 | -9/Materials | Core integrity fell below 20% 646 | -9/Materials | Discovered new exit (range 16) 654 | -9/Materials | Entered Mines 660 | -9/Mines | Discovered new exit (range 10) 716 | -9/Mines | Learned location of 1 exit from Materials 732 | -9/Mines | Destroyed by S-10 Pest with Light Assault Rifle Last Messages --------------- 00628_ Slammed into S-10 Pest. 00633_ K-01 Serf cleans the Hadron Collector. 00634_ K-01 Serf collects debris. 00637_ O-16 Technician: "IFF HANDSHAKE FAILED. SECURING TERMINAL." 00638_ S-10 Pest destroyed. 00639_ O-16 Technician uses terminal to summon reinforcements. 00639_ ALERT: Hostiles spotted, dispatching reinforcements to Terminal M008. 00639_ O-16 Technician locks terminal. 00641_ K-01 Serf collects debris. 00646_ EXIT=FOUND 00647_ K-01 Serf collects debris. 00650_ K-01 Serf destroyed. 00651_ K-01 Serf collects debris. LOCATION=UNKNOWN GOAL=ESCAPE 00660_ EXIT=FOUND 00716_ Acquired derelict log, extracted data. Data stored: Materials exits (x1). 00717_ T-07 Excavator is excavating. Map ----- +----------------------------------------------------+ | ?????????????????????????????????????????????????? | | ?????????????????????????????????????????????????? | | ?????????????????????????????????????????????????? | | ?????????????????????????????????????????????????? | | ?????????????????????????????????????????????????? | | ?????????????????????????????????????????????????? | | ?????????????????????????????????????????????????? | | ?????????????????????????????????????????????????" | | ??????????????????????????????????????????###### " | | ??????????????????????????????????????????# " | | ?????????????? ???????????? ??????????### | | ?????????????# ???????????? ?????????# ## ### | | ?????????????# ???????????? ????????# ## #? | | ?????????????# #??????##### ????????# ######? | | ?????????????# #?????## ????????# #?????? | | ?????????????# #????## ?????????# #?????? | | ?????????????# #????# #?????????# #?????? | | ?????????????# ###??# #???####???# #?????? | | ?????????????# ##?# #??## ##??# #?????? | | ?????????????# #?# #### #??# #?????? | | ??????????????# #?# #??# #?????? | | ?????????????## ### #???# #?????? | | ###?????????## #???# #?????? | | ########?## #???# #?????? | | # ### t##### #?????? | | # @ s #?????? | | ####### t #?????? | | ??????# ### ## #### #####?????? | | ??????# #### ####?#### ######??# #?????????? | | ??????####??#####???????## ##???????# #?????????? | | ?????????????????????????####????????# #?????????? | | ?????????????????# ?????????????????# #?????????? | | ?????????????????# ############ #?????????? | | ?????????????????# #?????????? | | ????????????????# #############?????????? | | ???????????????# #??????????????????????????? | | ??????????????? ????????????????????????????????? | | ?????????????????????????????????????????????????? | | ?????????????????????????????????????????????????? | | ?????????????????????????????????????????????????? | | ?????????????????????????????????????????????????? | | ?????????????????????????????????????????????????? | | ?????????????????????????????????????????????????? | | ?????????????????????????????????????????????????? | | ?????????????????????????????????????????????????? | | ?????????????????????????????????????????????????? | | ?????????????????????????????????????????????????? | | ?????????????????????????????????????????????????? | | ?????????????????????????????????????????????????? | | ?????????????????????????????????????????????????? | +----------------------------------------------------+ Best States ------------- Heat Dissipation 28 Energy Generation 10 Energy Capacity 125 Matter Stores 410 Matter Capacity 500 Sight Range 16 Terrain Scan Density 10 ECM Strength 1 Evasion (%) 62 Item Schematics ----------------- None Robot Schematics ------------------ None Fabricated ------------ Nothing Alien Tech Used ----------------- None Achievements -------------- None Challenges ------------ None Game ------ Seed NeutronStasisReplicator Manual? 0 Play Time 00:29:42 Cumulative 11.0 hours Start 2020.12.10 @ 20:08:48 End 2020.12.10 @ 20:41:00 Sessions 1 Manual Loads 0 Difficulty Rogue Special Mode None Game No. 5 Rogue 5 Adventurer 0 Explorer 0 Win Type - Total 0 Types 0/0/0/0/0/0/0/0/0 Lore% 5 Gallery% 11 Achievement% 12 Wizard Run 0 Options --------- ASCII 0 Keyboard 0 Movement Mouse Keybinds 0 Fullscreen 1 Font 24/Smallcaps Map View 76x50 Tactical HUD 1 Map Filters NONE Filters NONE Steam 1 RUN: 2682e398-87c8-481d-8900-44e05b706fce